[Event "Titled Tuesday Blitz April 05 Early 2022"]
[White "Le Ruyet, Leopold"]
[Black "Mekhitarian, Krikor Sevag"]
[WhiteFideId "645923"]
[BlackFideId "2107660"]
[WhiteElo "2276"]
[BlackElo "2598"]
[Result "0-1"]
[Round "10"]
[TimeControl "180+1"]
[Date "2022.04.05"]
[WhiteClock "0:00:06"]
[BlackClock "0:00:05"]

1. e4 {[%clk 0:03:00]}  e5 {[%clk 0:02:59]} 2. Nf3 {[%clk 0:03:00]}  Nf6 {[%clk 0:02:57]} 3. Nxe5 {[%clk 0:02:57]}  d6 {[%clk 0:02:56]} 4. Nf3 {[%clk 0:02:57]}  Nxe4 {[%clk 0:02:56]} 5. Bd3 {[%clk 0:02:57]}  Nf6 {[%clk 0:02:52]} 6. O-O {[%clk 0:02:54]}  Be7 {[%clk 0:02:52]} 7. Be2 {[%clk 0:02:51]}  O-O {[%clk 0:02:51]} 8. d4 {[%clk 0:02:52]}  d5 {[%clk 0:02:50]} 9. Bf4 {[%clk 0:02:49]}  c5 {[%clk 0:02:24]} 10. dxc5 {[%clk 0:02:46]}  Bxc5 {[%clk 0:02:23]} 11. Nc3 {[%clk 0:02:43]}  h6 {[%clk 0:02:12]} 12. Be5 {[%clk 0:02:33]}  Nbd7 {[%clk 0:01:49]} 13. Bd4 {[%clk 0:02:32]}  Bb4 {[%clk 0:01:44]} 14. a3 {[%clk 0:02:28]}  Bd6 {[%clk 0:01:38]} 15. Re1 {[%clk 0:02:13]}  a6 {[%clk 0:01:16]} 16. Bf1 {[%clk 0:02:03]}  b5 {[%clk 0:01:02]} 17. Ne5 {[%clk 0:01:53]}  Bb7 {[%clk 0:00:56]} 18. Nxd7 {[%clk 0:01:39]}  Nxd7 {[%clk 0:00:57]} 19. Bd3 {[%clk 0:01:33]}  Nc5 {[%clk 0:00:52]} 20. Qg4 {[%clk 0:01:17]}  Qg5 {[%clk 0:00:40]} 21. Qxg5 {[%clk 0:00:58]}  hxg5 {[%clk 0:00:41]} 22. Bf5 {[%clk 0:00:47]}  Rfe8 {[%clk 0:00:31]} 23. Kf1 {[%clk 0:00:42]}  g6 {[%clk 0:00:26]} 24. Bd3 {[%clk 0:00:25]}  Nxd3 {[%clk 0:00:24]} 25. cxd3 {[%clk 0:00:25]}  f5 {[%clk 0:00:13]} 26. Bf6 {[%clk 0:00:18]}  g4 {[%clk 0:00:11]} 27. d4 {[%clk 0:00:18]}  Kf7 {[%clk 0:00:12]} 28. Bg5 {[%clk 0:00:16]}  Rxe1+ {[%clk 0:00:09]} 29. Rxe1 {[%clk 0:00:15]}  Rh8 {[%clk 0:00:06]} 30. g3 {[%clk 0:00:06]}  Rxh2 {[%clk 0:00:05]} 0-1


[Site "https://www.chess.com"]

[Event "Titled Tuesday Blitz April 05 Early 2022"]
[White "Maung, Maung Kyaw Zaw Hein"]
[Black "Araujo Filho, Luiz Antonio Coel"]
[WhiteFideId "13001698"]
[BlackFideId "2130661"]
[WhiteElo "1785"]
[BlackElo "2261"]
[Result "1-0"]
[Round "10"]
[TimeControl "180+1"]
[Date "2022.04.05"]
[WhiteClock "0:00:12"]
[BlackClock "0:00:02"]

1. Nf3 {[%clk 0:02:59]}  f5 {[%clk 0:02:58]} 2. d3 {[%clk 0:02:58]}  Nf6 {[%clk 0:02:59]} 3. e4 {[%clk 0:02:58]}  fxe4 {[%clk 0:02:58]} 4. dxe4 {[%clk 0:02:58]}  Nxe4 {[%clk 0:02:33]} 5. Bd3 {[%clk 0:02:58]}  Nf6 {[%clk 0:02:31]} 6. Ng5 {[%clk 0:02:57]}  g6 {[%clk 0:02:23]} 7. h4 {[%clk 0:02:56]}  e5 {[%clk 0:02:17]} 8. h5 {[%clk 0:02:48]}  e4 {[%clk 0:01:11]} 9. Nxe4 {[%clk 0:02:27]}  Nxe4 {[%clk 0:01:09]} 10. Bxe4 {[%clk 0:02:26]}  Qe7 {[%clk 0:01:09]} 11. Qe2 {[%clk 0:02:24]}  d5 {[%clk 0:01:08]} 12. Bxd5 {[%clk 0:02:22]}  Qxe2+ {[%clk 0:01:09]} 13. Kxe2 {[%clk 0:02:21]}  gxh5 {[%clk 0:01:06]} 14. f3 {[%clk 0:02:10]}  c6 {[%clk 0:01:04]} 15. Be4 {[%clk 0:02:00]}  Rg8 {[%clk 0:01:04]} 16. Kf1 {[%clk 0:01:48]}  Be6 {[%clk 0:00:58]} 17. Rxh5 {[%clk 0:01:39]}  Nd7 {[%clk 0:00:56]} 18. Be3 {[%clk 0:01:34]}  Nf6 {[%clk 0:00:53]} 19. Rh4 {[%clk 0:01:28]}  Be7 {[%clk 0:00:51]} 20. Kf2 {[%clk 0:01:17]}  Nd5 {[%clk 0:00:48]} 21. Rxh7 {[%clk 0:01:12]}  Nxe3 {[%clk 0:00:46]} 22. Kxe3 {[%clk 0:01:13]}  Rxg2 {[%clk 0:00:33]} 23. Nc3 {[%clk 0:01:04]}  Bc5+ {[%clk 0:00:30]} 24. Kf4 {[%clk 0:01:02]}  O-O-O {[%clk 0:00:29]} 25. Ke5 {[%clk 0:00:59]}  Bg8 {[%clk 0:00:24]} 26. Rh5 {[%clk 0:00:53]}  Bd6+ {[%clk 0:00:11]} 27. Kd4 {[%clk 0:00:27]}  Bb4+ {[%clk 0:00:11]} 28. Ke3 {[%clk 0:00:25]}  Re8 {[%clk 0:00:09]} 29. Rd1 {[%clk 0:00:20]}  Rxc2 {[%clk 0:00:04]} 30. Rd3 {[%clk 0:00:15]}  Rxb2 {[%clk 0:00:03]} 31. Ne2 {[%clk 0:00:14]}  Rxa2 {[%clk 0:00:02]} 32. Nf4 {[%clk 0:00:14]}  Ra3 {[%clk 0:00:02]} 33. Rxa3 {[%clk 0:00:14]}  Bxa3 {[%clk 0:00:02]} 34. Nd3 {[%clk 0:00:13]}  Bd6 {[%clk 0:00:02]} 35. f4 {[%clk 0:00:12]} 1-0


[Site "https://www.chess.com"]

[Event "Titled Tuesday Blitz April 05 Early 2022"]
[White "Mickiewicz, Piotr"]
[Black "Arabidze, Meri"]
[WhiteFideId "1114891"]
[BlackFideId "13604040"]
[WhiteElo "2266"]
[BlackElo "2335"]
[Result "0-1"]
[Round "10"]
[TimeControl "180+1"]
[Date "2022.04.05"]
[WhiteClock "0:00:23"]
[BlackClock "0:00:57"]

1. e4 {[%clk 0:03:00]}  c5 {[%clk 0:03:00]} 2. Nf3 {[%clk 0:03:00]}  e6 {[%clk 0:03:00]} 3. d4 {[%clk 0:03:01]}  cxd4 {[%clk 0:03:01]} 4. Nxd4 {[%clk 0:03:01]}  Nc6 {[%clk 0:03:02]} 5. Nb5 {[%clk 0:02:58]}  d6 {[%clk 0:03:01]} 6. c4 {[%clk 0:02:59]}  Nf6 {[%clk 0:03:01]} 7. N5c3 {[%clk 0:02:57]}  Be7 {[%clk 0:03:00]} 8. Be2 {[%clk 0:02:58]}  O-O {[%clk 0:03:00]} 9. O-O {[%clk 0:02:58]}  b6 {[%clk 0:03:01]} 10. Be3 {[%clk 0:02:57]}  Bb7 {[%clk 0:03:00]} 11. Qd2 {[%clk 0:02:57]}  Ne5 {[%clk 0:02:59]} 12. f3 {[%clk 0:02:55]}  a6 {[%clk 0:02:59]} 13. b3 {[%clk 0:02:54]}  Qc7 {[%clk 0:02:57]} 14. Na4 {[%clk 0:02:43]}  Ned7 {[%clk 0:02:55]} 15. Nbc3 {[%clk 0:02:42]}  Rad8 {[%clk 0:02:47]} 16. Rfd1 {[%clk 0:02:41]}  Nc5 {[%clk 0:02:45]} 17. Bf1 {[%clk 0:02:40]}  d5 {[%clk 0:02:42]} 18. cxd5 {[%clk 0:02:34]}  exd5 {[%clk 0:02:43]} 19. e5 {[%clk 0:02:30]}  Qxe5 {[%clk 0:02:39]} 20. Nxb6 {[%clk 0:02:05]}  Bd6 {[%clk 0:02:28]} 21. g3 {[%clk 0:01:38]}  Ne6 {[%clk 0:02:28]} 22. Ne2 {[%clk 0:01:24]}  d4 {[%clk 0:02:19]} 23. Nc4 {[%clk 0:01:15]}  dxe3 {[%clk 0:02:15]} 24. Qxd6 {[%clk 0:01:14]}  Qxd6 {[%clk 0:01:57]} 25. Nxd6 {[%clk 0:01:11]}  Bxf3 {[%clk 0:01:56]} 26. Nc4 {[%clk 0:01:06]}  Nd5 {[%clk 0:01:44]} 27. Rac1 {[%clk 0:01:01]}  Ng5 {[%clk 0:01:29]} 28. Rd3 {[%clk 0:00:57]}  Be4 {[%clk 0:01:25]} 29. Rxd5 {[%clk 0:00:36]}  Nf3+ {[%clk 0:01:17]} 30. Kh1 {[%clk 0:00:33]}  Rxd5 {[%clk 0:01:04]} 31. Nxe3 {[%clk 0:00:32]}  Rd2 {[%clk 0:01:01]} 32. Rc4 {[%clk 0:00:23]}  f5 {[%clk 0:00:57]} 0-1


[Site "https://www.chess.com"]

[Event "Titled Tuesday Blitz April 05 Early 2022"]
[White "Mokshanov, Alexey"]
[Black "Horak, Martin"]
[WhiteFideId "24121657"]
[BlackFideId "367095"]
[WhiteElo "2141"]
[BlackElo "1997"]
[Result "1/2-1/2"]
[Round "10"]
[TimeControl "180+1"]
[Date "2022.04.05"]
[WhiteClock "0:02:34"]
[BlackClock "0:02:27"]

1. e4 {[%clk 0:02:46]}  c5 {[%clk 0:02:59]} 2. Nf3 {[%clk 0:02:46]}  e6 {[%clk 0:02:59]} 3. g3 {[%clk 0:02:44]}  d5 {[%clk 0:02:55]} 4. exd5 {[%clk 0:02:44]}  Qxd5 {[%clk 0:02:56]} 5. Bg2 {[%clk 0:02:44]}  Nf6 {[%clk 0:02:55]} 6. O-O {[%clk 0:02:44]}  Nc6 {[%clk 0:02:52]} 7. Nc3 {[%clk 0:02:41]}  Qd8 {[%clk 0:02:52]} 8. d4 {[%clk 0:02:38]}  cxd4 {[%clk 0:02:47]} 9. Nb5 {[%clk 0:02:38]}  Bc5 {[%clk 0:02:37]} 10. Bf4 {[%clk 0:02:38]}  O-O {[%clk 0:02:29]} 11. Nc7 {[%clk 0:02:33]}  Rb8 {[%clk 0:02:28]} 12. Nb5 {[%clk 0:02:33]}  Ra8 {[%clk 0:02:27]} 13. Nc7 {[%clk 0:02:34]}  Rb8 {[%clk 0:02:27]} 14. Nb5 {[%clk 0:02:34]}  Ra8 {[%clk 0:02:27]} 1/2-1/2


[Site "https://www.chess.com"]

[Event "Titled Tuesday Blitz April 05 Early 2022"]
[White "Nguyen Hong Nhung"]
[Black "Artemenko, Oleg"]
[WhiteFideId "12412201"]
[BlackFideId "14201798"]
[WhiteElo "1758"]
[BlackElo "2287"]
[Result "1-0"]
[Round "10"]
[TimeControl "180+1"]
[Date "2022.04.05"]
[WhiteClock "0:00:45"]
[BlackClock "0:00:35"]

1. e4 {[%clk 0:03:00]}  e6 {[%clk 0:02:57]} 2. d4 {[%clk 0:03:00]}  d5 {[%clk 0:02:56]} 3. Nc3 {[%clk 0:03:00]}  Nf6 {[%clk 0:02:56]} 4. Bg5 {[%clk 0:03:00]}  Bb4 {[%clk 0:02:56]} 5. e5 {[%clk 0:03:00]}  h6 {[%clk 0:02:56]} 6. Bd2 {[%clk 0:03:00]}  Bxc3 {[%clk 0:02:56]} 7. bxc3 {[%clk 0:03:00]}  Ne4 {[%clk 0:02:57]} 8. Bd3 {[%clk 0:02:59]}  Nxd2 {[%clk 0:02:56]} 9. Qxd2 {[%clk 0:03:00]}  c5 {[%clk 0:02:56]} 10. dxc5 {[%clk 0:03:00]}  Nc6 {[%clk 0:02:55]} 11. Qe3 {[%clk 0:02:53]}  Qa5 {[%clk 0:02:55]} 12. Ne2 {[%clk 0:02:50]}  d4 {[%clk 0:02:54]} 13. Qg3 {[%clk 0:02:45]}  O-O {[%clk 0:02:45]} 14. O-O {[%clk 0:02:44]}  dxc3 {[%clk 0:02:44]} 15. Qe3 {[%clk 0:02:41]}  Bd7 {[%clk 0:02:38]} 16. Nxc3 {[%clk 0:02:38]}  Rac8 {[%clk 0:02:35]} 17. Rab1 {[%clk 0:02:35]}  Nd8 {[%clk 0:01:58]} 18. Ne4 {[%clk 0:02:22]}  b6 {[%clk 0:01:51]} 19. Rb3 {[%clk 0:01:46]}  bxc5 {[%clk 0:01:34]} 20. Nf6+ {[%clk 0:01:42]}  Kh8 {[%clk 0:01:16]} 21. Nxd7 {[%clk 0:01:41]}  Rg8 {[%clk 0:01:16]} 22. Qe4 {[%clk 0:01:35]}  g6 {[%clk 0:01:02]} 23. Nf6 {[%clk 0:01:34]}  Rf8 {[%clk 0:01:00]} 24. Qh4 {[%clk 0:01:32]}  Kg7 {[%clk 0:00:58]} 25. Nd7 {[%clk 0:01:22]}  Re8 {[%clk 0:00:55]} 26. Bc4 {[%clk 0:01:18]}  Nc6 {[%clk 0:00:49]} 27. Qf6+ {[%clk 0:01:15]}  Kg8 {[%clk 0:00:49]} 28. Rh3 {[%clk 0:01:08]}  Qd2 {[%clk 0:00:46]} 29. Qh4 {[%clk 0:00:59]}  Kg7 {[%clk 0:00:41]} 30. Nf6 {[%clk 0:00:53]}  Red8 {[%clk 0:00:41]} 31. Bd3 {[%clk 0:00:47]}  Nxe5 {[%clk 0:00:39]} 32. Ne4 {[%clk 0:00:47]}  g5 {[%clk 0:00:35]} 33. Qxh6+ {[%clk 0:00:45]} 1-0


[Site "https://www.chess.com"]

[Event "Titled Tuesday Blitz April 05 Early 2022"]
[White "Omariev, Maksim"]
[Black "Yang, Kaiqi"]
[WhiteFideId "4193423"]
[BlackFideId "8604398"]
[WhiteElo "2494"]
[BlackElo "2373"]
[Result "0-1"]
[Round "10"]
[TimeControl "180+1"]
[Date "2022.04.05"]
[WhiteClock "0:01:50"]
[BlackClock "0:02:34"]

1. e4 {[%clk 0:03:00]}  e5 {[%clk 0:03:00]} 2. Nf3 {[%clk 0:03:01]}  Nc6 {[%clk 0:03:00]} 3. Bb5 {[%clk 0:03:01]}  a6 {[%clk 0:03:00]} 4. Ba4 {[%clk 0:03:00]}  Nf6 {[%clk 0:03:00]} 5. O-O {[%clk 0:03:01]}  Be7 {[%clk 0:03:01]} 6. Re1 {[%clk 0:03:01]}  b5 {[%clk 0:03:01]} 7. Bb3 {[%clk 0:03:01]}  O-O {[%clk 0:03:01]} 8. h3 {[%clk 0:03:01]}  Bb7 {[%clk 0:02:57]} 9. c3 {[%clk 0:02:42]}  d5 {[%clk 0:02:57]} 10. exd5 {[%clk 0:02:41]}  Nxd5 {[%clk 0:02:58]} 11. Nxe5 {[%clk 0:02:42]}  Nxe5 {[%clk 0:02:56]} 12. Rxe5 {[%clk 0:02:43]}  Nf4 {[%clk 0:02:52]} 13. f3 {[%clk 0:02:04]}  Nd3 {[%clk 0:02:45]} 14. Re2 {[%clk 0:01:51]}  Bc5+ {[%clk 0:02:42]} 15. Kf1 {[%clk 0:01:50]}  Qd6 {[%clk 0:02:36]} 16. Bc2 {[%clk 0:01:50]}  Qh2 {[%clk 0:02:34]} 0-1


[Site "https://www.chess.com"]

[Event "Titled Tuesday Blitz April 05 Early 2022"]
[White "Onslow, Alfie"]
[Black "Todorovic, Bojan"]
[WhiteFideId "436976"]
[BlackFideId "917087"]
[WhiteElo "1884"]
[BlackElo "2266"]
[Result "0-1"]
[Round "10"]
[TimeControl "180+1"]
[Date "2022.04.05"]
[WhiteClock "0:01:15"]
[BlackClock "0:02:10"]

1. Nf3 {[%clk 0:03:00]}  g6 {[%clk 0:02:57]} 2. c4 {[%clk 0:03:00]}  Bg7 {[%clk 0:02:58]} 3. g3 {[%clk 0:03:00]}  Nf6 {[%clk 0:02:57]} 4. b3 {[%clk 0:02:59]}  Ne4 {[%clk 0:02:55]} 5. d4 {[%clk 0:02:59]}  c5 {[%clk 0:02:53]} 6. Bg2 {[%clk 0:02:57]}  Nc6 {[%clk 0:02:53]} 7. Bb2 {[%clk 0:02:57]}  Qa5+ {[%clk 0:02:51]} 8. Nbd2 {[%clk 0:02:55]}  cxd4 {[%clk 0:02:46]} 9. O-O {[%clk 0:02:46]}  Nc3 {[%clk 0:02:46]} 10. Qe1 {[%clk 0:02:41]}  O-O {[%clk 0:02:38]} 11. a3 {[%clk 0:02:32]}  Qh5 {[%clk 0:02:33]} 12. Nb1 {[%clk 0:02:15]}  Nxb1 {[%clk 0:02:25]} 13. Rxb1 {[%clk 0:02:16]}  d6 {[%clk 0:02:24]} 14. Rd1 {[%clk 0:02:12]}  e5 {[%clk 0:02:20]} 15. e3 {[%clk 0:02:12]}  Bg4 {[%clk 0:02:13]} 16. exd4 {[%clk 0:01:15]}  Bxf3 {[%clk 0:02:11]} 17. Bxf3 {[%clk 0:01:15]}  Qxf3 {[%clk 0:02:10]} 0-1


[Site "https://www.chess.com"]

[Event "Titled Tuesday Blitz April 05 Early 2022"]
[White "Piliczewski, Bogusz"]
[Black "Matthes, Aaron"]
[WhiteFideId "1104144"]
[BlackFideId "16227310"]
[WhiteElo "1896"]
[BlackElo "2329"]
[Result "0-1"]
[Round "10"]
[TimeControl "180+1"]
[Date "2022.04.05"]
[WhiteClock "0:00:06"]
[BlackClock "0:01:36"]

1. d4 {[%clk 0:02:55]}  b6 {[%clk 0:02:59]} 2. Nf3 {[%clk 0:02:55]}  Nf6 {[%clk 0:03:00]} 3. Bf4 {[%clk 0:02:55]}  Bb7 {[%clk 0:02:59]} 4. e3 {[%clk 0:02:56]}  d6 {[%clk 0:02:58]} 5. Be2 {[%clk 0:02:56]}  Nbd7 {[%clk 0:02:59]} 6. O-O {[%clk 0:02:56]}  g6 {[%clk 0:02:59]} 7. h3 {[%clk 0:02:56]}  Bg7 {[%clk 0:03:00]} 8. c4 {[%clk 0:02:53]}  O-O {[%clk 0:03:00]} 9. Nc3 {[%clk 0:02:52]}  Re8 {[%clk 0:02:59]} 10. Bh2 {[%clk 0:02:50]}  e5 {[%clk 0:02:58]} 11. Qd2 {[%clk 0:02:41]}  Qe7 {[%clk 0:02:56]} 12. Rfd1 {[%clk 0:02:36]}  Rad8 {[%clk 0:02:55]} 13. Rac1 {[%clk 0:02:32]}  Ne4 {[%clk 0:02:45]} 14. Nxe4 {[%clk 0:02:28]}  Bxe4 {[%clk 0:02:46]} 15. b4 {[%clk 0:02:09]}  exd4 {[%clk 0:02:37]} 16. exd4 {[%clk 0:02:07]}  Qf6 {[%clk 0:02:13]} 17. Rc3 {[%clk 0:01:49]}  c5 {[%clk 0:02:11]} 18. bxc5 {[%clk 0:01:48]}  dxc5 {[%clk 0:02:09]} 19. Be5 {[%clk 0:01:28]}  Nxe5 {[%clk 0:02:07]} 20. dxe5 {[%clk 0:01:28]}  Rxd2 {[%clk 0:02:08]} 21. exf6 {[%clk 0:01:27]}  Rxd1+ {[%clk 0:02:08]} 22. Bxd1 {[%clk 0:01:26]}  Bxf6 {[%clk 0:02:08]} 23. Re3 {[%clk 0:01:25]}  Bc6 {[%clk 0:02:08]} 24. Ra3 {[%clk 0:01:06]}  Re7 {[%clk 0:02:02]} 25. Kf1 {[%clk 0:01:00]}  Kg7 {[%clk 0:01:59]} 26. Ra6 {[%clk 0:00:48]}  Bc3 {[%clk 0:01:58]} 27. g3 {[%clk 0:00:41]}  Ba5 {[%clk 0:01:56]} 28. Be2 {[%clk 0:00:35]}  Bb7 {[%clk 0:01:55]} 29. Rxa5 {[%clk 0:00:34]}  bxa5 {[%clk 0:01:56]} 30. Nd2 {[%clk 0:00:23]}  Rd7 {[%clk 0:01:49]} 31. Ke1 {[%clk 0:00:21]}  Re7 {[%clk 0:01:43]} 32. Kd1 {[%clk 0:00:19]}  Bg2 {[%clk 0:01:41]} 33. a4 {[%clk 0:00:18]}  Bxh3 {[%clk 0:01:41]} 34. Nb3 {[%clk 0:00:16]}  h5 {[%clk 0:01:40]} 35. Nxc5 {[%clk 0:00:14]}  Bg4 {[%clk 0:01:40]} 36. Bxg4 {[%clk 0:00:13]}  hxg4 {[%clk 0:01:40]} 37. Nb3 {[%clk 0:00:13]}  f5 {[%clk 0:01:39]} 38. Nxa5 {[%clk 0:00:12]}  Kf6 {[%clk 0:01:38]} 39. Nc6 {[%clk 0:00:12]}  Rc7 {[%clk 0:01:37]} 40. Nb4 {[%clk 0:00:07]}  Rc5 {[%clk 0:01:38]} 41. Nd5+ {[%clk 0:00:05]}  Ke5 {[%clk 0:01:36]} 42. Ne3 {[%clk 0:00:06]}  g5 {[%clk 0:01:36]} 0-1


[Site "https://www.chess.com"]

[Event "Titled Tuesday Blitz April 05 Early 2022"]
[White "Pinheiro, Iung Alicio de O."]
[Black "Mirzoev, Azer"]
[WhiteFideId "2104350"]
[BlackFideId "13400304"]
[WhiteElo "2527"]
[BlackElo "2525"]
[Result "1/2-1/2"]
[Round "10"]
[TimeControl "180+1"]
[Date "2022.04.05"]
[WhiteClock "0:00:15"]
[BlackClock "0:00:46"]

1. c4 {[%clk 0:02:59]}  Nf6 {[%clk 0:03:00]} 2. g3 {[%clk 0:03:00]}  e5 {[%clk 0:02:57]} 3. Bg2 {[%clk 0:03:00]}  Nc6 {[%clk 0:02:55]} 4. Nc3 {[%clk 0:03:00]}  Bc5 {[%clk 0:02:54]} 5. a3 {[%clk 0:02:58]}  a6 {[%clk 0:02:53]} 6. e3 {[%clk 0:02:58]}  Ba7 {[%clk 0:02:53]} 7. Nge2 {[%clk 0:02:57]}  d6 {[%clk 0:02:54]} 8. h3 {[%clk 0:02:57]}  Be6 {[%clk 0:02:51]} 9. b3 {[%clk 0:02:31]}  d5 {[%clk 0:02:49]} 10. d4 {[%clk 0:02:30]}  exd4 {[%clk 0:02:48]} 11. exd4 {[%clk 0:02:30]}  O-O {[%clk 0:02:46]} 12. O-O {[%clk 0:02:26]}  Ne7 {[%clk 0:02:38]} 13. c5 {[%clk 0:02:21]}  c6 {[%clk 0:02:37]} 14. Bf4 {[%clk 0:02:13]}  Bb8 {[%clk 0:02:37]} 15. Qd2 {[%clk 0:01:58]}  Bxf4 {[%clk 0:02:35]} 16. Nxf4 {[%clk 0:01:58]}  Bf5 {[%clk 0:02:36]} 17. Rfe1 {[%clk 0:01:57]}  Ng6 {[%clk 0:02:35]} 18. b4 {[%clk 0:01:48]}  Re8 {[%clk 0:02:33]} 19. Nd3 {[%clk 0:01:41]}  Ne4 {[%clk 0:02:30]} 20. Nxe4 {[%clk 0:01:35]}  Bxe4 {[%clk 0:02:28]} 21. Bf1 {[%clk 0:01:28]}  h5 {[%clk 0:02:23]} 22. h4 {[%clk 0:01:27]}  Qf6 {[%clk 0:02:21]} 23. Nf4 {[%clk 0:01:17]}  Nxf4 {[%clk 0:02:18]} 24. Qxf4 {[%clk 0:01:17]}  Qxd4 {[%clk 0:02:18]} 25. Rad1 {[%clk 0:01:09]}  Qf6 {[%clk 0:02:15]} 26. Qxf6 {[%clk 0:01:03]}  gxf6 {[%clk 0:02:15]} 27. Be2 {[%clk 0:01:03]}  Bg6 {[%clk 0:02:14]} 28. Bf3 {[%clk 0:00:59]}  Re5 {[%clk 0:02:14]} 29. Rf1 {[%clk 0:00:56]}  Kg7 {[%clk 0:02:11]} 30. Rd4 {[%clk 0:00:56]}  a5 {[%clk 0:01:58]} 31. b5 {[%clk 0:00:55]}  cxb5 {[%clk 0:01:57]} 32. Rxd5 {[%clk 0:00:53]}  Rc8 {[%clk 0:01:45]} 33. Rc1 {[%clk 0:00:47]}  Rc7 {[%clk 0:01:45]} 34. Rc3 {[%clk 0:00:32]}  Rxd5 {[%clk 0:01:34]} 35. Bxd5 {[%clk 0:00:31]}  Bf5 {[%clk 0:01:34]} 36. f3 {[%clk 0:00:27]}  Bd7 {[%clk 0:01:31]} 37. Kf2 {[%clk 0:00:26]}  Be6 {[%clk 0:01:24]} 38. Bxe6 {[%clk 0:00:17]}  fxe6 {[%clk 0:01:24]} 39. Ke3 {[%clk 0:00:17]}  f5 {[%clk 0:01:18]} 40. Kd4 {[%clk 0:00:17]}  Rd7+ {[%clk 0:00:55]} 41. Ke3 {[%clk 0:00:17]}  Rd5 {[%clk 0:00:52]} 42. c6 {[%clk 0:00:17]}  bxc6 {[%clk 0:00:52]} 43. Rxc6 {[%clk 0:00:17]}  Kf6 {[%clk 0:00:53]} 44. Ra6 {[%clk 0:00:17]}  a4 {[%clk 0:00:53]} 45. Rb6 {[%clk 0:00:17]}  Rc5 {[%clk 0:00:52]} 46. Kd4 {[%clk 0:00:16]}  Rd5+ {[%clk 0:00:51]} 47. Ke3 {[%clk 0:00:16]}  Ke5 {[%clk 0:00:48]} 48. f4+ {[%clk 0:00:15]}  Kf6 {[%clk 0:00:48]} 49. Rb7 {[%clk 0:00:16]}  Rc5 {[%clk 0:00:46]} 50. Kd4 {[%clk 0:00:16]}  Rc4+ {[%clk 0:00:46]} 51. Kd3 {[%clk 0:00:16]}  Rc5 {[%clk 0:00:46]} 52. Kd4 {[%clk 0:00:16]}  Rd5+ {[%clk 0:00:46]} 53. Ke3 {[%clk 0:00:17]}  Kg6 {[%clk 0:00:46]} 54. Re7 {[%clk 0:00:15]}  Kf6 {[%clk 0:00:46]} 55. Rb7 {[%clk 0:00:15]} 1/2-1/2


[Site "https://www.chess.com"]

[Event "Titled Tuesday Blitz April 05 Early 2022"]
[White "Politov, Pavel Y."]
[Black "Demin, Vladimir"]
[WhiteFideId "24110515"]
[BlackFideId "4167457"]
[WhiteElo "2090"]
[BlackElo "2411"]
[Result "1-0"]
[Round "10"]
[TimeControl "180+1"]
[Date "2022.04.05"]
[WhiteClock "0:00:05"]
[BlackClock "0:00:10"]

1. e4 {[%clk 0:03:00]}  c5 {[%clk 0:02:59]} 2. Nf3 {[%clk 0:03:01]}  Nc6 {[%clk 0:02:58]} 3. d4 {[%clk 0:03:01]}  cxd4 {[%clk 0:02:58]} 4. Nxd4 {[%clk 0:03:02]}  e5 {[%clk 0:02:58]} 5. Nb5 {[%clk 0:03:01]}  a6 {[%clk 0:02:58]} 6. Nd6+ {[%clk 0:03:00]}  Bxd6 {[%clk 0:02:58]} 7. Qxd6 {[%clk 0:03:01]}  Qe7 {[%clk 0:02:58]} 8. Qd1 {[%clk 0:02:50]}  Nf6 {[%clk 0:02:56]} 9. Nc3 {[%clk 0:02:43]}  Nd4 {[%clk 0:02:53]} 10. Be3 {[%clk 0:02:39]}  O-O {[%clk 0:02:52]} 11. Bxd4 {[%clk 0:02:30]}  d5 {[%clk 0:02:51]} 12. Nxd5 {[%clk 0:02:12]}  Nxd5 {[%clk 0:02:29]} 13. exd5 {[%clk 0:02:13]}  exd4+ {[%clk 0:02:26]} 14. Be2 {[%clk 0:02:12]}  Qe5 {[%clk 0:02:20]} 15. O-O {[%clk 0:02:05]}  Qxd5 {[%clk 0:02:08]} 16. Qd2 {[%clk 0:02:02]}  Qc5 {[%clk 0:01:59]} 17. Rfd1 {[%clk 0:01:57]}  Rd8 {[%clk 0:01:56]} 18. c3 {[%clk 0:01:52]}  Be6 {[%clk 0:01:35]} 19. cxd4 {[%clk 0:01:50]}  Qb6 {[%clk 0:01:34]} 20. Bf3 {[%clk 0:01:44]}  Bd5 {[%clk 0:01:30]} 21. Bxd5 {[%clk 0:01:42]}  Rxd5 {[%clk 0:01:31]} 22. Rac1 {[%clk 0:01:34]}  Rad8 {[%clk 0:01:29]} 23. b3 {[%clk 0:01:27]}  Qf6 {[%clk 0:01:27]} 24. Qe3 {[%clk 0:01:20]}  h6 {[%clk 0:01:17]} 25. Rc4 {[%clk 0:01:02]}  b5 {[%clk 0:01:16]} 26. Rcc1 {[%clk 0:00:41]}  Rxd4 {[%clk 0:01:12]} 27. Rxd4 {[%clk 0:00:41]}  Qxd4 {[%clk 0:01:11]} 28. Qxd4 {[%clk 0:00:18]}  Rxd4 {[%clk 0:01:12]} 29. Kf1 {[%clk 0:00:17]}  Rd2 {[%clk 0:01:11]} 30. a4 {[%clk 0:00:16]}  bxa4 {[%clk 0:01:02]} 31. bxa4 {[%clk 0:00:16]}  Rd4 {[%clk 0:01:01]} 32. Ra1 {[%clk 0:00:14]}  f5 {[%clk 0:00:58]} 33. Ke2 {[%clk 0:00:14]}  Kf7 {[%clk 0:00:58]} 34. Ke3 {[%clk 0:00:13]}  Rb4 {[%clk 0:00:58]} 35. a5 {[%clk 0:00:10]}  Ke6 {[%clk 0:00:56]} 36. Rc1 {[%clk 0:00:08]}  Kd6 {[%clk 0:00:49]} 37. Rc8 {[%clk 0:00:04]}  Ra4 {[%clk 0:00:42]} 38. Rg8 {[%clk 0:00:04]}  Rxa5 {[%clk 0:00:38]} 39. Rxg7 {[%clk 0:00:05]}  Ke5 {[%clk 0:00:36]} 40. Rh7 {[%clk 0:00:05]}  Ra3+ {[%clk 0:00:35]} 41. Ke2 {[%clk 0:00:05]}  Ra2+ {[%clk 0:00:27]} 42. Kf1 {[%clk 0:00:05]}  a5 {[%clk 0:00:23]} 43. Rxh6 {[%clk 0:00:06]}  a4 {[%clk 0:00:23]} 44. Ra6 {[%clk 0:00:06]}  a3 {[%clk 0:00:23]} 45. g3 {[%clk 0:00:06]}  Ke4 {[%clk 0:00:21]} 46. Kg2 {[%clk 0:00:07]}  Ra1 {[%clk 0:00:19]} 47. h4 {[%clk 0:00:07]}  f4 {[%clk 0:00:18]} 48. gxf4 {[%clk 0:00:06]}  Kxf4 {[%clk 0:00:18]} 49. h5 {[%clk 0:00:07]}  a2 {[%clk 0:00:11]} 50. h6 {[%clk 0:00:07]}  Rb1 {[%clk 0:00:08]} 51. h7 {[%clk 0:00:07]}  Rb8 {[%clk 0:00:08]} 52. Rxa2 {[%clk 0:00:06]}  Rh8 {[%clk 0:00:07]} 53. Ra7 {[%clk 0:00:07]}  Kf5 {[%clk 0:00:08]} 54. Kg3 {[%clk 0:00:07]}  Kg6 {[%clk 0:00:08]} 55. Kg4 {[%clk 0:00:05]}  Kf6 {[%clk 0:00:06]} 56. f4 {[%clk 0:00:04]}  Kg6 {[%clk 0:00:06]} 57. Kh4 {[%clk 0:00:02]}  Rxh7+ {[%clk 0:00:04]} 58. Rxh7 {[%clk 0:00:01]}  Kxh7 {[%clk 0:00:05]} 59. Kh5 {[%clk 0:00:01]}  Kg7 {[%clk 0:00:05]} 60. Kg5 {[%clk 0:00:02]}  Kf7 {[%clk 0:00:05]} 61. Kf5 {[%clk 0:00:03]}  Kg7 {[%clk 0:00:05]} 62. Ke6 {[%clk 0:00:03]}  Kg6 {[%clk 0:00:05]} 63. f5+ {[%clk 0:00:03]}  Kg5 {[%clk 0:00:06]} 64. f6 {[%clk 0:00:03]}  Kg6 {[%clk 0:00:07]} 65. f7 {[%clk 0:00:04]}  Kg7 {[%clk 0:00:08]} 66. Ke7 {[%clk 0:00:04]}  Kg6 {[%clk 0:00:09]} 67. f8=Q {[%clk 0:00:05]}  Kg5 {[%clk 0:00:09]} 68. Qf6+ {[%clk 0:00:05]}  Kg4 {[%clk 0:00:10]} 69. Ke6 {[%clk 0:00:05]} 1-0


[Site "https://www.chess.com"]